bitfinex/quotes_SOLUSD_20251208
["timestamp","ask_amount","ask_price","bid_price","bid_amount"]
[1765164812058,0.15570344,134.51,134.5,22.07151332]
[1765164814362,0.15570344,134.51,134.5,16.24488916]
[1765164814756,0.15570344,134.51,134.5,16.93488916]
[1765164815157,0.15570344,134.51,134.5,1e-08]
[1765164815458,0.15570344,134.51,134.5,16.30886401]
[1765164818289,0.15570344,134.51,134.5,35.40451898]
[1765164818465,0.15570344,134.51,134.5,43.58451898]
[1765164818785,0.15570344,134.51,134.5,46.56037732]
[1765164820582,0.30894005,134.51,134.5,46.56037732]
[1765164820887,0.15323661,134.51,134.5,46.56037732]
[1765164825990,0.15323661,134.51,134.5,45.87037732]
[1765164826767,0.84323661,134.51,134.5,43.7096115]
[1765164826963,0.84323661,134.51,134.5,11.15585835]
[1765164827491,0.84323661,134.51,134.5,8.18000001]
[1765164830093,0.15323661,134.51,134.5,8.18000001]
[1765164830479,0.15323661,134.51,134.5,27.27565498]
[1765164840808,0.15925498,134.51,134.5,27.27565498]
[1765164843900,0.82925498,134.51,134.5,26.58565498]
[1765164844113,0.82925498,134.51,134.5,16.98994493]
[1765164845079,0.82925498,134.51,134.5,24.42488916]
[1765164846076,0.82925498,134.51,134.5,16.98994493]
[1765164846283,0.82925498,134.51,134.5,8.18000001]
[1765164847386,0.82925498,134.51,134.5,10.34076583]
[1765164849681,0.82925498,134.51,134.5,2.16076583]
[1765164851888,0.82925498,134.51,134.5,1e-08]
[1765164855957,0.15925498,134.51,134.5,2.16076583]
[1765164856419,0.86925498,134.51,134.5,1e-08]
[1765164860617,1.02664542,134.51,134.5,1e-08]
[1765164860804,0.86739044,134.51,134.5,1e-08]
[1765164861937,0.15739044,134.51,134.5,9.52994493]
[1765164862218,0.15739044,134.51,134.5,36.17957475]
[1765164862392,0.15739044,134.51,134.5,35.45957475]
[1765164862594,0.15739044,134.51,134.5,36.17957475]
[1765164862906,0.15739044,134.51,134.5,43.61451898]
[1765164867010,0.15739044,134.51,134.5,27.30565498]
[1765164872522,0.15739044,134.51,134.5,26.58565498]
[1765164872727,0.15739044,134.51,134.5,27.80112267]
[1765164873422,0.82739044,134.51,134.5,44.10998667]
[1765164875730,0.15739044,134.51,134.5,44.10998667]
[1765164877329,0.15739044,134.51,134.5,44.82998667]
[1765164878013,0.15739044,134.51,134.5,44.10998667]
[1765164878834,0.15739044,134.51,134.5,44.82998667]
[1765164880736,0.16350082,134.51,134.5,44.82998667]
[1765164881028,0.16350082,134.51,134.5,44.10998667]
[1765164882319,0.83350082,134.51,134.5,40.73375316]
[1765164883406,0.16350082,134.51,134.5,44.10998667]
[1765164884029,0.83350082,134.51,134.5,44.10998667]
[1765164885030,0.16350082,134.51,134.5,44.10998667]
[1765164885964,0.83350082,134.51,134.5,44.10998667]
[1765164887113,0.83350082,134.51,134.5,40.73375316]
[1765164887315,0.16350082,134.51,134.5,44.10998667]
[1765164890214,0.83350082,134.51,134.5,44.10998667]
[1765164890738,0.16350082,134.51,134.5,44.82998667]
[1765164891737,0.16350082,134.51,134.5,28.52112267]
[1765164897320,0.15480343,134.52,134.51,8.80994492]
[1765164897639,0.14355057,134.54,134.53,25.11880892]
[1765164897846,0.14355057,134.54,134.53,36.67504243]
[1765164898031,0.14355057,134.54,134.53,37.35504243]
[1765164898231,0.14355057,134.54,134.53,40.32979422]
[1765164898841,0.14355057,134.54,134.53,47.76308047]
[1765164899044,0.14355057,134.54,134.53,47.08308047]
[1765164899242,0.14355057,134.54,134.53,44.10832868]
[1765164900442,0.80355057,134.54,134.53,40.73209517]
[1765164900642,0.14519262,134.54,134.53,44.10832868]
[1765164901034,0.80519262,134.54,134.53,44.10832868]
[1765164901640,0.80519262,134.54,134.53,40.73209517]
[1765164902437,0.80519262,134.54,134.53,44.10832868]
[1765164903946,0.80519262,134.54,134.53,40.73209517]
[1765164905235,0.80519262,134.54,134.53,44.10832868]
[1765164910357,11.61435923,134.54,134.5,8.80994493]
[1765164910657,8.23812572,134.54,134.5,8.80994493]
[1765164910842,0.66,134.53,134.51,7.43421589]
[1765164911161,0.66,134.53,134.51,10.8104494]
[1765164915335,0.66,134.53,134.5,27.80091985]
[1765164916555,8.09331072,134.53,134.5,16.98994493]
[1765164917064,3.37623351,134.51,134.46,15.96834665]
[1765164917364,0.66,134.52,134.48,7.43589253]
[1765164917569,0.66,134.51,134.48,10.81212604]
[1765164919654,0.66,134.51,134.48,3.37623351]
[1765164920183,0.66,134.51,134.49,8.80994492]
[1765164920774,0.15017563,134.5,134.49,8.80994492]
[1765164921065,0.15017563,134.5,134.49,36.67504243]
[1765164921267,0.15017563,134.5,134.49,20.36617843]
[1765164921660,0.15017563,134.5,134.49,44.80053949]
[1765164922669,0.15017563,134.5,134.49,28.49167549]
[1765164927873,0.15017563,134.5,134.49,44.80053949]
[1765164928172,0.15017563,134.5,134.49,44.11053949]
[1765164928559,0.15017563,134.5,134.49,44.80053949]
[1765164929782,0.15017563,134.5,134.49,28.49167549]
[1765164932875,0.15017563,134.5,134.49,27.27568692]
[1765164934386,0.15017563,134.5,134.49,30.25154526]
[1765164939384,0.13579559,134.51,134.49,30.25154526]
[1765164939586,0.13579559,134.51,134.5,27.96905386]
[1765164940079,0.14250549,134.52,134.51,25.11880892]
[1765164940278,0.15775054,134.53,134.52,10.97018986]
[1765164940483,0.15775054,134.53,134.52,11.66018986]
[1765164940664,0.83462413,134.55,134.54,16.308864]
[1765164940875,0.13462413,134.55,134.54,26.64910894]
[1765164941375,0.83462413,134.55,134.54,34.08184269]
[1765164942177,0.83462413,134.55,134.54,42.89178761]
[1765164950392,0.13462413,134.55,134.54,42.89178761]
[1765164951082,0.82462413,134.55,134.54,42.89178761]
[1765164952571,0.15440408,134.56,134.54,52.22276737]
[1765164952780,0.13814138,134.58,134.57,25.11880892]
[1765164953086,0.15411558,134.59,134.57,44.1041508]
[1765164953271,0.15411558,134.59,134.58,10.97018986]
[1765164953472,0.15411558,134.59,134.58,11.66018986]
[1765164954069,0.15411558,134.59,134.58,10.97018986]
[1765164954391,0.15411558,134.59,134.58,11.66018986]
[1765164954571,0.15411558,134.59,134.58,19.09071445]
[1765164955381,0.14777863,134.61,134.6,25.11880892]
[1765164955583,0.69,134.64,134.61,8.80994492]
[1765164955762,0.1,134.65,134.63,10.97018986]
[1765164955969,0.79,134.65,134.64,2.16024494]
[1765164956177,0.79,134.65,134.64,10.34024494]
[1765164957994,0.79,134.65,134.64,26.57740316]
[1765164959168,0.1,134.65,134.64,26.57740316]
[1765164959368,0.1,134.65,134.64,27.25740316]
[1765164959793,0.1,134.65,134.64,26.57740316]
[1765164960677,0.23439461,134.65,134.64,26.57740316]
[1765164961486,0.23439461,134.65,134.64,27.25740316]
[1765164961795,0.14822909,134.66,134.65,25.11880892]
[1765164961975,0.14822909,134.66,134.65,11.65018986]
[1765164962484,0.23584804,134.67,134.66,25.11880892]
[1765164962688,0.23584804,134.67,134.66,36.13905386]
[1765164963699,0.24840167,134.68,134.67,8.80994492]
[1765164963875,0.1516676,134.7,134.69,8.80994492]
[1765164964076,0.26130301,134.71,134.69,19.15018986]
[1765164964403,0.13435396,134.72,134.71,27.27905386]
[1765164964605,0.13435396,134.72,134.71,35.45905386]
[1765164964771,0.13435396,134.72,134.71,36.13905386]
[1765164965872,0.82435396,134.72,134.71,42.88240773]
[1765164966201,0.82435396,134.72,134.71,33.29880892]
[1765164966404,0.82435396,134.72,134.71,8.18]
[1765164966579,0.82435396,134.72,134.69,2.16024494]
[1765164966580,0.82435396,134.72,134.69,10.34024494]
[1765164966900,0.82435396,134.72,134.69,26.64910894]
[1765164967403,8.24715681,134.72,134.69,24.488864]
[1765164967896,8.11342925,134.71,134.69,8.18]
[1765164968285,0.69,134.7,134.69,8.18]
[1765164971687,0.69,134.7,134.68,8.80994492]
[1765164976404,8.11400833,134.7,134.67,8.18]
[1765164976593,0.69,134.7,134.67,8.18]
[1765164976782,0.69,134.69,134.67,8.18]
[1765164978497,0.69,134.69,134.66,25.11880892]
[1765164978708,10.27473428,134.69,134.65,8.80994492]
[1765164979005,10.27473428,134.69,134.65,16.98994492]
[1765164979309,0.69,134.68,134.65,16.98994492]
[1765164980403,0.69,134.68,134.65,24.41651131]
[1765164980805,0.16319934,134.66,134.65,24.41651131]
[1765164981290,0.85319934,134.66,134.65,24.41651131]
[1765164982104,0.85319934,134.66,134.65,8.18]
[1765164983008,0.85319934,134.66,134.64,16.308864]
[1765164983009,0.85319934,134.66,134.63,8.80994492]
[1765164983189,10.43962847,134.66,134.61,7.42871554]
[1765164983392,10.43962847,134.66,134.61,16.98994492]
[1765164983595,0.69,134.65,134.61,33.29880892]
[1765164983800,2.85024494,134.65,134.61,16.98994492]
[1765164983984,2.85024494,134.65,134.6,8.80994492]
[1765164984185,2.85024494,134.65,134.6,34.70840403]
[1765164984186,8.1172133,134.64,134.6,34.70840403]
[1765164984590,0.69,134.63,134.6,34.70840403]
[1765164985595,0.69,134.63,134.61,2.16024494]
[1765164986693,8.11789421,134.63,134.6,16.308864]
[1765164987138,0.69,134.62,134.6,16.308864]
[1765164987501,0.69,134.62,134.6,18.46910894]
[1765164988012,0.69,134.62,134.59,17.76981552]
[1765164990999,0.69,134.62,134.59,8.18]
[1765164991304,8.11841124,134.62,134.59,8.18]
[1765164991717,0.69,134.61,134.59,8.18]
[1765164993022,0.69,134.61,134.58,16.308864]
[1765164993023,8.1189,134.61,134.58,16.308864]
[1765164993237,10.27914494,134.61,134.56,2.16024494]
[1765164993405,0.69,134.6,134.56,10.34024494]
[1765164994121,0.69,134.6,134.56,8.18]
[1765164994325,7.4299725,134.59,134.56,8.18]
[1765164994819,0.69,134.58,134.56,8.18]
[1765164995702,0.69,134.58,134.55,16.24201549]
[1765164996399,0.69,134.58,134.55,19.61638502]
[1765164997032,0.69,134.6,134.57,12.18431445]
[1765164997201,0.69,134.59,134.58,3.37436953]
[1765164998319,8.12025399,134.59,134.56,8.18]
[1765164998546,8.12025399,134.59,134.55,8.80994492]
[1765164998708,0.69,134.58,134.55,8.80994492]
[1765164998905,0.69,134.58,134.54,11.75436953]
[1765164999213,4.06436953,134.58,134.54,8.38]
[1765164999417,0.69,134.58,134.54,20.56431445]
[1765164999625,0.69,134.57,134.54,21.26431445]
[1765164999829,0.69,134.57,134.54,24.688864]
[1765165000028,4.06436953,134.57,134.54,8.38]
[1765165000342,7.43162901,134.56,134.54,0.2]
[1765165000550,8.12162901,134.56,134.54,0.2]
[1765165000706,0.84618944,134.55,134.54,0.2]
[1765165002933,8.27837078,134.55,134.54,0.2]
[1765165005411,0.84618944,134.55,134.54,0.2]
[1765165006632,8.27837078,134.55,134.54,0.2]
[1765165009417,0.15618944,134.55,134.54,0.9]
[1765165009623,0.15618944,134.55,134.54,3.57436953]
[1765165010738,0.15618944,134.55,134.54,0.2]
[1765165010935,8.28837078,134.55,134.54,0.2]
[1765165017323,11.66274031,134.55,134.54,0.2]
[1765165018340,8.28837078,134.55,134.54,0.2]
[1765165019444,7.58837078,134.55,134.54,0.2]
[1765165020242,8.23837078,134.55,134.54,0.2]
[1765165020621,8.22850699,134.55,134.54,0.2]
[1765165021429,7.57850699,134.55,134.54,0.2]
[1765165021845,8.22850699,134.55,134.54,0.2]
[1765165023530,0.14632565,134.55,134.54,0.2]
[1765165023738,0.79632565,134.55,134.54,0.2]
[1765165023949,0.14632565,134.55,134.54,0.2]
[1765165024129,0.79632565,134.55,134.54,0.2]
[1765165024328,0.14632565,134.55,134.54,0.2]
[1765165024636,0.79632565,134.55,134.54,0.2]
[1765165024839,8.22850699,134.55,134.54,0.2]
[1765165025860,19.78287652,134.55,134.54,0.2]
[1765165030363,16.40850699,134.55,134.54,0.2]
[1765165031937,8.22850699,134.55,134.54,0.2]
[1765165034158,11.60287652,134.55,134.54,0.2]
[1765165037350,8.22850699,134.55,134.54,0.2]
[1765165037556,7.57850699,134.55,134.54,0.92]
[1765165040646,7.58032254,134.55,134.54,0.92]
[1765165042770,7.58032254,134.55,134.54,0.2]
[1765165044580,11.63469207,134.55,134.54,0.2]
[1765165047587,7.58032254,134.55,134.54,0.9]
[1765165048157,7.58032254,134.55,134.54,13.08431445]
[1765165048158,0.1481412,134.55,134.54,13.08431445]
[1765165049355,0.14125559,134.56,134.55,25.11880892]
[1765165049553,0.14945874,134.57,134.56,16.24157393]
[1765165049803,0.14026438,134.58,134.57,28.49317845]
[1765165049960,0.14026438,134.58,134.57,29.19317845]
[1765165051797,0.14026438,134.58,134.57,36.62425521]
[1765165053264,0.14026438,134.58,134.57,16.308864]
[1765165053465,0.14026438,134.58,134.57,4.07436953]
[1765165055724,0.14026438,134.58,134.57,0.7]
[1765165056016,0.14026438,134.58,134.56,37.37317845]
[1765165056677,0.14026438,134.58,134.56,36.15801362]
[1765165057393,0.82026438,134.58,134.56,8.18]
[1765165059373,8.25105477,134.58,134.54,36.35801362]
[1765165060785,0.14884924,134.55,134.54,36.35801362]
[1765165060977,0.14884924,134.55,134.54,33.49880892]
[1765165061178,0.14884924,134.55,134.54,8.38]
[1765165061592,0.82884924,134.55,134.54,8.38]
[1765165061983,8.26103058,134.55,134.54,0.2]
[1765165063088,10.42023528,134.55,134.54,0.2]
[1765165068289,10.42023528,134.55,134.48,25.11880892]
[1765165068290,2.1592047,134.52,134.48,33.29880892]
[1765165068791,0.68,134.51,134.48,33.29880892]
[1765165068993,0.68,134.51,134.48,33.99880892]
[1765165069205,0.68,134.51,134.48,17.68994492]
[1765165069996,8.11454685,134.51,134.48,17.68994492]
[1765165071310,0.66,134.5,134.48,8.18]
[1765165071520,0.66,134.5,134.46,0.2]
[1765165071521,2.1592047,134.49,134.46,0.2]
[1765165072026,2.1592047,134.5,134.46,0.2]
[1765165072192,0.66,134.48,134.46,0.2]
[1765165072388,2.8192047,134.48,134.46,0.2]
[1765165072829,0.66,134.47,134.46,0.2]
[1765165073030,8.09660295,134.47,134.46,0.2]
[1765165074196,7.43660295,134.47,134.46,0.2]
[1765165075891,8.09660295,134.47,134.46,0.2]
[1765165079497,10.25580765,134.47,134.46,0.2]
[1765165079912,8.09660295,134.47,134.46,0.2]
[1765165080706,8.25508174,134.47,134.46,0.2]
[1765165082836,10.41428644,134.47,134.46,0.2]
[1765165083420,18.59428644,134.47,134.46,0.2]
[1765165083822,16.43508174,134.47,134.46,0.2]
[1765165085040,18.59428644,134.47,134.46,0.2]
[1765165085212,104.8,134.46,134.42,1e-08]
[1765165085416,18.4680687,134.43,134.39,0.2]
[1765165085723,2.1592047,134.4,134.36,0.2]
[1765165085923,2.1592047,134.39,134.36,0.2]
[1765165086115,8.2,134.39,134.36,0.2]
[1765165086315,0.72,134.38,134.36,0.2]
[1765165087209,8.16200397,134.38,134.36,0.2]
[1765165087433,37.91442172,134.43,134.37,2.8492047]
[1765165087618,26.03819761,134.42,134.39,2.1592047]
[1765165088133,26.75819761,134.42,134.39,2.8492047]
[1765165088822,7.43936914,134.42,134.4,2.8492047]
[1765165090211,7.43936914,134.42,134.4,2.1592047]
[1765165090526,7.43936914,134.42,134.4,2.8492047]
[1765165090837,7.43881574,134.43,134.4,2.8492047]
[1765165091146,112.23770918,134.45,134.42,2.1592047]
[1765165091348,130.83198214,134.45,134.42,2.8492047]
[1765165091505,0.72,134.44,134.4,0.69]
[1765165091712,0.72,134.44,134.41,2.1592047]
[1765165091905,131.55198214,134.45,134.41,2.8492047]
[1765165092429,0.72,134.44,134.41,2.8492047]
[1765165092625,131.55198214,134.45,134.41,2.8492047]
[1765165093142,130.83198214,134.45,134.41,2.8492047]
[1765165093452,131.55198214,134.45,134.41,2.8492047]
[1765165093617,130.83198214,134.45,134.41,2.8492047]
[1765165093818,0.72,134.44,134.41,2.8492047]
[1765165094128,0.72,134.44,134.4,2.1592047]
[1765165094319,0.72,134.44,134.4,2.8492047]
[1765165095646,7.43881574,134.43,134.4,2.8492047]
[1765165096029,8.15881574,134.43,134.4,2.1592047]
[1765165096232,0.72,134.42,134.38,2.1592047]
[1765165096545,0.72,134.42,134.37,2.1592047]
[1765165096724,0.72,134.42,134.37,2.8492047]
[1765165097738,7.43992262,134.41,134.37,2.8492047]
[1765165098941,0.72,134.41,134.38,0.69]
[1765165099344,7.43936914,134.42,134.38,2.8492047]
[1765165099551,7.43826242,134.44,134.41,2.1592047]
[1765165099749,7.43826242,134.44,134.42,2.1592047]
[1765165100122,105.52,134.45,134.43,2.8492047]
[1765165100123,112.23785817,134.45,134.43,2.8492047]
[1765165100319,7.43729468,134.46,134.44,2.1592047]
[1765165100524,7.43729468,134.46,134.44,2.8492047]
[1765165100738,2.99752145,134.45,134.4,7.43729468]
[1765165100939,7.43826242,134.44,134.39,10.96914962]
[1765165101149,8.12826242,134.44,134.4,2.1592047]
[1765165101334,0.69,134.43,134.4,2.8392047]
[1765165101533,0.69,134.43,134.4,0.68]
[1765165102452,7.43936914,134.42,134.39,0.68]
[1765165102627,7.43936914,134.42,134.38,16.308864]
[1765165102826,8.12936914,134.42,134.38,16.988864]
[1765165103243,8.12936914,134.42,134.39,0.68]
[1765165103748,7.43936914,134.42,134.39,0.68]
[1765165103953,8.2,134.44,134.4,2.1592047]
[1765165104129,8.12826242,134.44,134.4,2.8392047]
[1765165104829,8.12826242,134.44,134.4,0.68]
[1765165105029,7.43826242,134.44,134.4,11.64914962]
[1765165105338,0.69,134.43,134.4,0.68]
[1765165106357,8.12926801,134.43,134.4,0.68]
[1765165106656,7.43926801,134.43,134.4,0.68]
[1765165108446,8.12926801,134.43,134.4,0.68]
[1765165108624,7.43926801,134.43,134.4,0.68]
[1765165108830,8.12926801,134.43,134.4,0.68]
[1765165109357,7.43841661,134.44,134.41,2.1592047]
[1765165109660,8.12841661,134.44,134.41,0.68]
[1765165110131,8.12841661,134.44,134.4,10.3592047]
[1765165110329,8.12841661,134.44,134.41,0.68]
[1765165111547,8.12841661,134.44,134.4,10.3592047]
[1765165111759,8.12841661,134.44,134.4,11.0392047]
[1765165111760,26.03407266,134.44,134.4,11.0392047]
[1765165111956,0.69,134.43,134.4,11.0392047]
[1765165112650,26.03407266,134.44,134.4,11.0392047]
[1765165112955,26.72407266,134.44,134.4,11.0392047]
[1765165113334,0.69,134.43,134.4,8.2]
[1765165115657,7.43936914,134.42,134.4,8.2]
[1765165116161,0.69,134.41,134.4,8.2]
[1765165116453,0.69,134.41,134.38,2.8392047]
[1765165116653,0.69,134.41,134.38,0.68]
[1765165116859,0.69,134.41,134.38,4.06330072]
[1765165117750,7.44047619,134.4,134.38,4.06330072]
[1765165118259,7.44047619,134.4,134.37,11.58330072]
[1765165118457,8.13047619,134.4,134.37,12.26330072]
[1765165119237,18.60052474,134.41,134.37,12.26330072]
[1765165119441,0.69,134.4,134.37,12.26330072]
[1765165119644,0.69,134.4,134.37,8.2]
[1765165120753,0.15596738,134.38,134.37,8.2]
[1765165121861,7.59755094,134.38,134.37,8.2]
[1765165122359,7.59755094,134.38,134.36,0.2]
[1765165122360,8.28755094,134.38,134.36,0.2]
[1765165122769,7.59755094,134.38,134.36,0.2]
[1765165122943,0.69,134.37,134.36,0.2]
[1765165123856,8.13213738,134.37,134.36,0.2]
[1765165124376,7.44213738,134.37,134.36,0.2]
[1765165124944,8.13213738,134.37,134.36,0.2]
[1765165125840,0.15596738,134.38,134.36,4.26330072]
[1765165125841,7.59771567,134.38,134.36,4.26330072]
[1765165126245,7.59771567,134.38,134.37,4.06330072]
[1765165126468,0.15596738,134.38,134.37,4.06330072]
[1765165127043,0.15596738,134.38,134.37,21.07324564]
[1765165127356,0.15596738,134.38,134.37,8.2]
[1765165127677,8.28755094,134.38,134.36,0.2]
[1765165128172,4.07330072,134.37,134.36,0.2]
[1765165128340,0.69,134.37,134.36,0.2]
[1765165128742,4.07330072,134.37,134.36,0.2]
[1765165129671,11.5154381,134.37,134.36,0.2]
[1765165131346,134.23078155,134.37,134.32,0.2]
[1765165131567,3.38330072,134.35,134.32,0.2]
[1765165131952,4.08330072,134.34,134.32,0.2]
[1765165132474,8.14435345,134.33,134.32,0.2]
[1765165135167,11.52765417,134.33,134.32,0.2]
[1765165135474,8.14435345,134.33,134.32,0.2]
[1765165135876,7.44435345,134.33,134.32,0.87]
[1765165136177,7.44435345,134.33,134.32,0.2]
[1765165136744,7.44379931,134.34,134.32,0.2]
[1765165137150,8.14379931,134.34,134.32,0.2]
[1765165137485,7.44379931,134.34,134.33,0.67]
[1765165137984,7.44379931,134.34,134.32,0.2]
[1765165138174,8.13379931,134.34,134.32,0.2]
[1765165139581,7.44379931,134.34,134.32,0.2]
[1765165139979,7.44341849,134.35,134.32,13.06324564]
[1765165140175,7.44341849,134.35,134.33,3.38330072]
[1765165140382,26.04827753,134.37,134.34,3.38330072]
[1765165140587,26.73827753,134.37,134.34,0.67]
[1765165140766,0.1609439,134.35,134.33,4.0227679]
[1765165141364,7.44379931,134.34,134.32,0.2]
[1765165141894,7.44379931,134.34,134.32,0.87]
[1765165142788,7.44379931,134.34,134.32,0.2]
[1765165144989,0.69,134.33,134.32,0.2]
[1765165146763,8.13435345,134.33,134.32,0.2]
[1765165147373,108.18330072,134.32,134.29,0.2]
[1765165147572,117.09330072,134.32,134.29,0.2]
[1765165147775,0.69,134.31,134.29,0.2]
[1765165148873,7.44601638,134.3,134.29,0.2]
[1765165149070,19.0493171,134.3,134.29,0.2]
[1765165149276,7.44601638,134.3,134.29,0.2]
[1765165150880,8.13546199,134.31,134.29,0.2]
[1765165151482,7.44546199,134.31,134.29,0.87]
[1765165151679,112.24508086,134.32,134.29,4.25330072]
[1765165151881,112.24508086,134.32,134.3,0.67]
[1765165152282,0.69,134.31,134.29,0.2]
[1765165152899,7.44601638,134.3,134.29,0.2]
[1765165153287,8.13601638,134.3,134.29,0.2]
[1765165153695,7.44601638,134.3,134.29,0.2]
[1765165154172,7.44560144,134.31,134.29,0.87]
[1765165154377,7.44435345,134.33,134.3,3.38330072]
[1765165154611,7.44435345,134.33,134.31,3.38330072]
[1765165154903,7.44435345,134.33,134.31,4.05330072]
[1765165155410,7.44435345,134.33,134.3,3.38330072]
[1765165155583,7.44435345,134.33,134.3,4.05330072]
[1765165155980,7.44435345,134.33,134.3,0.67]
[1765165156186,7.44435345,134.33,134.3,4.05330072]
[1765165157275,26.05345588,134.34,134.29,0.2]
[1765165157498,26.05345588,134.34,134.31,4.05330072]
[1765165157898,26.74345588,134.34,134.31,4.05330072]
[1765165158085,26.05345588,134.34,134.3,4.05330072]
[1765165158285,26.74345588,134.34,134.3,4.05330072]
[1765165158689,26.74345588,134.34,134.31,0.67]
[1765165159095,26.74345588,134.34,134.3,3.38330072]
[1765165159294,26.74345588,134.34,134.3,4.05330072]
[1765165159686,26.74345588,134.34,134.31,0.67]
[1765165160692,0.1593436,134.32,134.29,3.58330072]
[1765165161107,0.8493436,134.32,134.29,4.28330072]
[1765165161819,7.44546199,134.31,134.29,4.28330072]
[1765165162507,7.44546199,134.31,134.3,3.38330072]
[1765165162702,7.6043781,134.32,134.3,4.08330072]
[1765165163415,7.6043781,134.32,134.3,3.38330072]
[1765165166123,7.6043781,134.32,134.29,0.9]
[1765165166301,7.6043781,134.32,134.3,3.38330072]
[1765165166624,7.6043781,134.32,134.31,3.38330072]
[1765165167102,8.2943781,134.32,134.31,3.38330072]
[1765165167521,8.2943781,134.32,134.3,3.38330072]
[1765165167725,0.69,134.31,134.29,0.2]
[1765165168024,12.29330072,134.31,134.29,0.2]
[1765165168223,8.91,134.31,134.29,0.2]
[1765165168404,0.69,134.3,134.29,0.2]
[1765165169604,8.13601638,134.3,134.29,0.2]
[1765165170204,11.5193171,134.3,134.29,0.2]
[1765165174932,19.7393171,134.3,134.29,0.2]
[1765165175525,7.44601638,134.3,134.29,0.2]
[1765165175830,8.13601638,134.3,134.29,0.2]
[1765165178037,7.44601638,134.3,134.29,0.9]
[1765165178778,7.44554905,134.31,134.29,0.9]
[1765165178908,7.44554905,134.31,134.3,0.7]
[1765165179705,7.44554905,134.31,134.29,0.2]
[1765165179911,8.13554905,134.31,134.29,0.2]
[1765165180212,7.44554905,134.31,134.29,0.2]
[1765165180412,0.69,134.3,134.29,0.2]
[1765165180830,0.84304572,134.3,134.29,0.2]
[1765165181206,8.2890621,134.3,134.29,0.2]
[1765165183847,7.5990621,134.3,134.29,0.2]
[1765165184035,8.2890621,134.3,134.29,0.2]
[1765165184762,7.5990621,134.3,134.29,0.2]
[1765165185054,7.5990621,134.3,134.29,0.9]
[1765165185630,7.5990621,134.3,134.29,0.2]
[1765165186136,8.2890621,134.3,134.29,0.2]
[1765165186454,7.5990621,134.3,134.29,0.2]
[1765165186823,8.2890621,134.3,134.29,0.2]
[1765165187535,7.5990621,134.3,134.29,0.2]
[1765165188844,8.2890621,134.3,134.29,0.2]
[1765165196355,7.5990621,134.3,134.29,0.2]
[1765165198760,7.5990621,134.3,134.29,0.86]
[1765165200542,8.3190621,134.3,134.29,0.2]
[1765165200857,8.30417286,134.3,134.29,0.2]
[1765165201569,7.58417286,134.3,134.29,0.86]
[1765165201750,0.13815648,134.3,134.29,0.86]
[1765165201946,7.58417286,134.3,134.29,0.2]
[1765165202256,8.30417286,134.3,134.29,0.2]
[1765165204957,16.52417286,134.3,134.29,0.2]
[1765165206063,121.32417286,134.3,134.29,0.2]
[1765165206263,123.49357835,134.3,134.28,0.2]
[1765165206468,2.88940549,134.29,134.28,0.2]
[1765165208463,10.33597634,134.29,134.28,0.2]
[1765165209562,8.16657085,134.29,134.28,0.2]
[1765165210575,7.44657085,134.29,134.28,0.2]
[1765165213665,8.16657085,134.29,134.28,0.2]
[1765165213977,7.44657085,134.29,134.28,0.86]
[1765165214184,7.44657085,134.29,134.28,0.2]
[1765165216186,8.16657085,134.29,134.28,0.2]
[1765165216681,28.95240347,134.29,134.25,0.2]
[1765165216889,2.16940549,134.27,134.25,0.2]
[1765165217771,7.44823476,134.26,134.25,0.2]
[1765165218766,8.16823476,134.26,134.25,0.2]
[1765165219180,7.44823476,134.26,134.25,0.2]
[1765165220892,7.59945925,134.26,134.25,0.2]
[1765165221266,0.66,134.25,134.23,1e-08]
[1765165221464,26.69826949,134.24,134.23,1e-08]
[1765165221976,27.35826949,134.24,134.23,1e-08]
[1765165223169,34.80761394,134.24,134.23,1e-08]
[1765165223369,34.14761394,134.24,134.23,1e-08]
[1765165223678,17.83874994,134.24,134.23,1e-08]
[1765165223880,18.49874994,134.24,134.23,1e-08]
[1765165225871,10.27874994,134.24,134.23,1e-08]
[1765165226074,18.49874994,134.24,134.23,1e-08]
[1765165226972,18.49874994,134.24,134.23,0.71000001]
[1765165226973,7.44934445,134.24,134.23,0.71000001]